[Event "FIDE WCCC G12 2018"]
[Site "Santiago de Compostela"]
[Date "2018.11.13"]
[Round "9"]
[White "Nasibova, Narmin"]
[Black "Menon, Gauri"]
[Result "1-0"]
[ECO "D37"]
[WhiteElo "1331"]
[BlackElo "1592"]
[Annotator "NA RC"]
[PlyCount "145"]
[EventDate "2018.11.04"]
[EventType "swiss"]
[EventCountry "ESP"]
[SourceTitle "playchess.com"]
[Source "ChessBase"]
[SourceQuality "1"]
[TimeControl "40/5400+30:1800+30"]

1. d4 {[%emt 0:00:00]} d5 {[%emt 0:00:00]} 2. c4 {[%emt 0:00:00]} e6 {[%emt 0:00:00]} 3. Nf3 {[%emt 0:00:17]} Nf6 {[%emt 0:00:12]} 4. Nc3 {[%emt 0:00:59]} Be7 {[%emt 0:00:28]} 5. Bf4 {[%emt 0:01:27]} a6 {[%emt 0:02:54]} 6. e3 {[%emt 0:00:58]} O-O {[%emt 0:00:47]} 7. c5 {[%emt 0:04:44]} b6 {[%emt 0:12:20]} 8. b4 {[%emt 0:09:07]} a5 {[%emt 0:05:51]} 9. a3 {[%emt 0:07:15]} Nh5 {[%emt 0:11:41]} 10. Bg3 {[%emt 0:02:31]} c6 {[%emt 0:04:30]} 11. Bxb8 {[%emt 0:05:12]} Rxb8 {[%emt 0:10:34]} 12. Ne5 {[%emt 0:04:14]} Ra8 {[%emt 0:05:16]} 13. Nxc6 {[%emt 0:25:41]} Qc7 {[%emt 0:01:24]} 14. Nxe7+ {[%emt 0:01:47]} Qxe7 {[%emt 0:00:12]} 15. bxa5 {[%emt 0:20:20]} bxc5 {[%emt 0:11:51]} 16. Qxh5 {[%emt 0:01:59]} Rxa5 {[%emt 0:02:09]} 17. Bd3 {[%emt 0:04:43]} g6 {[%emt 0:01:55]} 18. Qd1 {[%emt 0:01:29]} cxd4 {[%emt 0:02:48]} 19. exd4 {[%emt 0:01:05]} Rxa3 {[%emt 0:01:40]} 20. Rxa3 {[%emt 0:01:17]} Qxa3 {[%emt 0:00:12]} 21. Ne2 {[%emt 0:01:11]} Qa5+ {[%emt 0:04:06]} 22. Qd2 {[%emt 0:00:32]} Qa1+ {[%emt 0:00:43]} 23. Qc1 {[%emt 0:00:40]} Qa5+ {[%emt 0:02:35]} 24. Qc3 {[%emt 0:00:33]} Qb6 {[%emt 0:02:55]} 25. O-O {[%emt 0:00:33]} Ba6 {[%emt 0:00:56]} 26. Rb1 {[%emt 0:02:28]} Qd6 {[%emt 0:02:31]} 27. Bxa6 {[%emt 0:01:32]} Qxa6 {[%emt 0:00:09]} 28. Ng3 {[%emt 0:00:31]} Rc8 {[%emt 0:01:15]} 29. Qb3 {[%emt 0:00:47]} Qa7 {[%emt 0:01:41]} 30. Qe3 {[%emt 0:00:33]} Rc4 {[%emt 0:02:18]} 31. Rd1 {[%emt 0:00:29]} Qa4 {[%emt 0:00:45]} 32. Qd3 {[%emt 0:00:31]} Rc2 {[%emt 0:02:09]} 33. h3 {[%emt 0:00:29]} Qa2 {[%emt 0:00:17]} 34. Qe3 {[%emt 0:00:28]} Qb2 {[%emt 0:00:30]} 35. Qe1 {[%emt 0:00:33]} Rc4 {[%emt 0:01:21]} 36. Qd2 {[%emt 0:00:28]} Rc2 {[%emt 0:00:22]} 37. Qe3 {[%emt 0:00:27]} Rc3 {[%emt 0:00:39]} 38. Qe5 {[%emt 0:00:30]} Rc2 {[%emt 0:00:17]} 39. Qf4 {[%emt 0:00:30]} Rc4 {[%emt 0:00:49]} 40. Qd2 {[%emt 0:00:00]} Rc2 {[%emt 0:00:00]} 41. Qf4 {[%emt 0:12:14]} Rc4 {[%emt 0:03:14]} 42. h4 {[%emt 0:02:47]} Kg7 {[%emt 0:02:06]} 43. h5 {[%emt 0:03:18]} f6 {[%emt 0:04:16]} 44. Qe3 {[%emt 0:03:26]} Rc6 {[%emt 0:02:19]} 45. Qe2 {[%emt 0:06:01]} Qxe2 {[%emt 0:12:36]} 46. Nxe2 {[%emt 0:00:11]} g5 {[%emt 0:00:10]} 47. f3 {[%emt 0:01:24]} h6 {[%emt 0:01:40]} 48. Kf2 {[%emt 0:01:05]} f5 {[%emt 0:01:36]} 49. Rc1 {[%emt 0:00:40]} Rxc1 {[%emt 0:00:40]} 50. Nxc1 {[%emt 0:00:04]} Kf6 {[%emt 0:00:38]} 51. Nd3 {[%emt 0:00:13]} f4 {[%emt 0:01:00]} 52. Ne5 {[%emt 0:00:37]} Kg7 {[%emt 0:00:22]} 53. Ng4 {[%emt 0:00:51]} Kh7 {[%emt 0:00:12]} 54. g3 {[%emt 0:01:06]} Kg7 {[%emt 0:00:30]} 55. gxf4 {[%emt 0:00:34]} gxf4 {[%emt 0:00:14]} 56. Kg2 {[%emt 0:00:10]} Kh7 {[%emt 0:00:11]} 57. Kh3 {[%emt 0:00:09]} Kg7 {[%emt 0:00:08]} 58. Ne5 {[%emt 0:00:12]} Kf6 {[%emt 0:00:15]} 59. Kg4 {[%emt 0:00:06]} Kg7 {[%emt 0:00:08]} 60. Kxf4 {[%emt 0:00:05]} Kf6 {[%emt 0:00:04]} 61. Ng4+ {[%emt 0:00:24]} Kg7 {[%emt 0:00:07]} 62. Ke5 {[%emt 0:00:04]} Kh7 {[%emt 0:00:16]} 63. Kxe6 {[%emt 0:00:05]} Kg7 {[%emt 0:00:09]} 64. Kxd5 {[%emt 0:00:04]} Kh7 {[%emt 0:00:10]} 65. Ke6 {[%emt 0:00:04]} Kg7 {[%emt 0:00:07]} 66. d5 {[%emt 0:00:02]} Kh7 {[%emt 0:00:08]} 67. d6 {[%emt 0:00:03]} Kg7 {[%emt 0:00:05]} 68. d7 {[%emt 0:00:02]} Kh7 {[%emt 0:00:14]} 69. d8=Q {[%emt 0:00:11]} Kg7 {[%emt 0:00:05]} 70. Qf6+ {[%emt 0:00:08]} Kg8 {[%emt 0:00:22]} 71. Nxh6+ {[%emt 0:00:10]} Kh7 {[%emt 0:00:13]} 72. Qg6+ {[%emt 0:00:09]} Kh8 {[%emt 0:00:09]} 73. Qg8# {[%emt 0:00:03]} 1-0

[Event "FIDE WCCC G12 2018"]
[Site "Santiago de Compostela"]
[Date "2018.11.14"]
[Round "10"]
[White "Kairbekova, Amina"]
[Black "Volovich, Julia"]
[Result "1-0"]
[ECO "C10"]
[WhiteElo "1939"]
[BlackElo "1735"]
[Annotator "NA RC"]
[PlyCount "93"]
[EventDate "2018.11.04"]
[EventType "swiss"]
[EventCountry "ESP"]
[SourceTitle "playchess.com"]
[Source "ChessBase"]
[SourceQuality "1"]
[TimeControl "40/5400+30:1800+30"]

{[%evp 19,91,0,32767,-4,-17,-21,7,-36,12,0,12,0,32767,1,10,0,32767,32767,32767,32767,83,83,32767,95,32767,66,195,32767,511,185,169,0,359,32767,32767,563,702,324,32767,309,311,325,32767,32767,425,469,594,565,29983,29984,29997,29996,29996,32767,32767,32767,32767,872,32767,32767,32767,29992,29992,29993,32767,29995,32767,32767,32767,32767,32767,745,29998,29999]} 1. e4 {[%emt 0:00:00]} e6 {[%emt 0:00:00]} 2. d4 {[%emt 0:00:08]} d5 {[%emt 0:00:00]} 3. Nc3 {[%emt 0:00:15]} dxe4 {[%emt 0:00:00]} 4. Nxe4 {[%emt 0:00:04]} Nd7 {[%emt 0:00:00]} 5. Nf3 {[%emt 0:00:42]} Ngf6 {[%emt 0:00:00]} 6. Nxf6+ {[%emt 0:00:04]} Nxf6 {[%emt 0:00:08]} 7. Be3 {[%emt 0:00:02]} Nd5 {[%emt 0:08:07] C10: French with 3 Nc3: Unusual Black 3rd moves and 3...dxe4} 8. Bd2 {[%emt 0:00:07]} c5 {[%emt 0:01:55]} 9. c4 {[%emt 0:00:05]} (9. Bb5+ Bd7 10. Bxd7+ Qxd7 11. c4 Nb6 12. Rc1 Be7 13. dxc5 Bxc5 14. b4 Be7 15. c5 {½-½ (46) Nguyen,N (2618)-Lu,S (2629) Hamedan 2018}) 9... Nf6 {[%emt 0:01:59]} 10. dxc5 {[%emt 0:04:41]} Bxc5 {[%emt 0:00:47]} 11. b4 {[%emt 0:01:24]} Be7 {[%emt 0:03:34]} 12. Qc2 {[%emt 0:00:43]} O-O $146 {[%emt 0:10:40]} ({Predecessor:} 12... Qc7 13. Be2 O-O 14. O-O Bd7 15. Bd3 {½-½ (31) Bjerke,S (2235)-Vargas Reyes,A (2050) Istanbul 2012}) 13. Bd3 {[%emt 0:00:08]} b6 {[%emt 0:04:39]} (13... b5 $15) 14. Bc3 {[%emt 0:00:13]} h6 {[%emt 0:12:03]} 15. Rd1 {[%emt 0:00:36]} Qc7 {[%emt 0:01:46]} 16. O-O {[%emt 0:09:10]} Bb7 {[%emt 0:10:33]} 17. Qe2 {[%emt 0:03:51]} Ng4 {[%emt 0:14:50]} 18. Ne5 {[%emt 0:00:12]} Nxe5 {[%emt 0:00:46]} 19. Bxe5 {[%emt 0:00:05]} Qc6 {[%emt 0:04:17]} 20. Qg4 {[%emt 0:00:05]} f6 {[%emt 0:08:28]} 21. Bc3 {[%emt 0:00:38]} e5 {[%emt 0:02:28]} 22. b5 {[%emt 0:04:11]} Qe8 {[%emt 0:07:35]} (22... Qc7 $16 {is a better defense.}) 23. Bg6 {[%emt 0:04:06]} Qc8 $2 {[%emt 0:02:00]} (23... f5 {is tougher.}) 24. Bf5 $2 {[%emt 0:00:10]} (24. Rd7 Rd8 25. Qe6+ Kh8 26. Rfd1 Rxd7 27. Rxd7 Qxd7 28. Qxd7) 24... Qe8 {[%emt 0:01:02] [#]} 25. Bd7 $2 {[%emt 0:04:16]} ({Don't take} 25. Rd7 $6 Bc8 $14) (25. c5 $1 $18) 25... Qb8 $2 {[%emt 0:00:27]} (25... Bc8 $11 {and Black stays safe.}) 26. Be6+ {[%emt 0:01:38]} Kh8 {[%emt 0:00:11]} 27. Rd7 {[%emt 0:00:20]} f5 {[%emt 0:01:43]} 28. Bxf5 {[%emt 0:00:05]} ({Weaker is} 28. Qg6 Rf6 $16) (28. Qg3 $142 f4 29. Qg4) 28... Rxf5 {[%emt 0:01:54]} 29. Qxf5 {[%emt 0:03:55]} Bc8 {[%emt 0:00:07]} 30. Rfd1 {[%emt 0:06:19]} Bxd7 {[%emt 0:00:09]} 31. Rxd7 {[%emt 0:00:53]} Bf6 {[%emt 0:00:57] [#]} 32. f4 $1 {[%emt 0:00:08]} Qc8 {[%emt 0:01:52]} 33. fxe5 {[%emt 0:00:05]} Qxc4 {[%emt 0:00:49]} 34. exf6 {[%emt 0:00:20]} Kg8 {[%emt 0:00:41]} 35. Rxg7+ {[%emt 0:00:46]} Kf8 {[%emt 0:00:14]} 36. f7 {[%emt 0:00:55]} Qxc3 {[%emt 0:00:21]} 37. Rg8+ {[%emt 0:00:05]} Ke7 {[%emt 0:00:04]} 38. f8=Q+ {[%emt 0:00:16]} Rxf8 {[%emt 0:00:06]} 39. Qxf8+ {[%emt 0:00:04]} Ke6 {[%emt 0:00:07]} 40. Rg6+ {[%emt 0:00:00]} Kd5 {[%emt 0:00:00]} 41. Qd6+ {[%emt 0:01:03]} Ke4 {[%emt 0:00:31]} 42. Rg4+ {[%emt 0:00:20]} Kf5 {[%emt 0:00:12]} 43. Rf4+ {[%emt 0:00:16]} Kg5 {[%emt 0:00:08]} 44. h4+ {[%emt 0:00:07]} Kh5 {[%emt 0:00:08]} 45. g4+ {[%emt 0:00:21]} (45. Qd5+ $142 Kg6 46. Qf7#) 45... Kxh4 {[%emt 0:00:05]} 46. Qxh6+ {[%emt 0:00:03]} Kg3 {[%emt 0:00:07]} 47. Qh2# {[%emt 0:00:03]} 1-0

[Event "FIDE WCCC G12 2018"]
[Site "Santiago de Compostela"]
[Date "2018.11.14"]
[Round "10"]
[White "Vicze, Kata"]
[Black "Enkhsaran, Batsaikhan"]
[Result "0-1"]
[ECO "C44"]
[WhiteElo "1828"]
[BlackElo "1614"]
[Annotator "NA RC"]
[PlyCount "86"]
[EventDate "2018.11.04"]
[EventType "swiss"]
[EventCountry "ESP"]
[SourceTitle "playchess.com"]
[Source "ChessBase"]
[SourceQuality "1"]
[TimeControl "40/5400+30:1800+30"]

{[%evp 19,86,0,0,32767,58,0,0,0,0,0,0,0,4,0,0,10,8,-68,32767,32767,32767,27,48,27,90,16,35,9,32767,32767,32767,41,80,81,32767,32767,128,32767,160,115,118,126,137,32767,25,0,0,0,0,-131,32767,-11,0,-27,0,-217,-233,-549,-604,-745,-906,-764,-941,32767,-501,-981,-1090,-1001,-986]} 1. e4 {[%emt 0:00:00]} e5 {[%emt 0:00:00]} 2. Nf3 {[%emt 0:00:00]} Nc6 {[%emt 0:00:15]} 3. d4 {[%emt 0:00:08]} exd4 {[%emt 0:00:18]} 4. c3 {[%emt 0:00:56]} d5 {[%emt 0:00:59]} 5. exd5 {[%emt 0:00:46]} Qxd5 {[%emt 0:00:29]} 6. cxd4 {[%emt 0:00:37]} Bg4 {[%emt 0:00:44]} 7. Be2 {[%emt 0:00:50]} Bb4+ {[%emt 0:00:31]} 8. Nc3 {[%emt 0:01:04]} Bxf3 {[%emt 0:01:00]} 9. Bxf3 {[%emt 0:00:45]} Qc4 {[%emt 0:00:34]} 10. Bxc6+ {[%emt 0:04:37]} bxc6 {[%emt 0:00:51]} 11. Qe2+ {[%emt 0:01:39]} Qxe2+ {[%emt 0:00:22]} 12. Kxe2 {[%emt 0:00:08]} Ne7 {[%emt 0:00:43]} 13. Rd1 {[%emt 0:03:58]} O-O-O {[%emt 0:00:35]} 14. Be3 {[%emt 0:02:08]} Rhe8 {[%emt 0:01:03] C44: Ponziani Opening and Scotch Gambit} 15. Rd3 {[%emt 0:07:06] LiveBook: 6 Games} h6 {[%emt 0:05:39]} (15... Nf5 16. Rad1 Ba5 17. g4 Nd6 18. Kf1 Bb6 19. b4 f5 20. h3 fxg4 21. hxg4 Nc4 22. Bc1 {0-1 (34) Campos Olaya,I (2333)-Barbero Sendic,A (2415) Tornabous 2014}) 16. Rad1 {[%emt 0:06:03]} f5 {[%emt 0:00:59]} 17. Kf1 $146 {[%emt 0:03:04]} ({Predecessor:} 17. f4 Ng8 18. Kf3 Nf6 19. a3 Bxc3 20. bxc3 Ne4 21. c4 Nd6 22. Rc1 {0-1 (32) Cliteur,O-Wieringa,H Haarlem 1995}) 17... g5 {[%emt 0:00:58]} 18. d5 {[%emt 0:06:10]} ({Better is} 18. g3 $11) 18... f4 {[%emt 0:02:21]} 19. Bxa7 {[%emt 0:02:14]} cxd5 {[%emt 0:00:30]} 20. a3 {[%emt 0:06:06]} Bxc3 {[%emt 0:00:20]} 21. Rxc3 {[%emt 0:03:39]} Kd7 {[%emt 0:04:59]} (21... Kb7 $11 {remains equal.} 22. Bc5 Nf5) 22. Rdc1 {[%emt 0:04:33]} ({White should try} 22. Rh3 $16) 22... c6 {[%emt 0:00:33]} 23. b4 {[%emt 0:03:15]} Rc8 {[%emt 0:02:16]} 24. Bc5 {[%emt 0:05:31]} Nf5 {[%emt 0:00:56]} 25. a4 {[%emt 0:02:14]} Ng7 {[%emt 0:01:45]} 26. a5 {[%emt 0:03:07]} Ne6 {[%emt 0:00:15]} 27. Bb6 {[%emt 0:00:34]} g4 {[%emt 0:02:38]} 28. a6 {[%emt 0:03:58]} Ng5 {[%emt 0:01:30]} 29. a7 {[%emt 0:02:26]} Ne4 {[%emt 0:00:48]} 30. R3c2 {[%emt 0:01:03]} Nd6 {[%emt 0:01:55]} 31. g3 {[%emt 0:11:40]} f3 $1 {[%emt 0:06:04]} 32. Be3 {[%emt 0:02:06]} Nb5 {[%emt 0:02:29]} 33. Ra1 {[%emt 0:03:33]} Ra8 {[%emt 0:03:24]} 34. Ra6 {[%emt 0:02:49]} (34. Bb6 $11 {remains equal.}) 34... Re6 {[%emt 0:03:55]} 35. Rca2 {[%emt 0:03:25]} Kc7 {[%emt 0:19:37]} 36. R2a5 {[%emt 0:03:42]} d4 {[%emt 0:04:14]} 37. Bf4+ $2 {[%emt 0:01:33]} (37. Rxb5 $1 $11 {and White stays safe.} dxe3 38. fxe3) 37... Kb7 {[%emt 0:00:38]} 38. Bb8 $2 {[%emt 0:00:34]} (38. Ra1 {war die entscheidende Verteidigung.}) 38... d3 {[%emt 0:02:22]} 39. Ra2 {[%emt 0:00:55]} Re2 {[%emt 0:01:42]} 40. Ra1 {[%emt 0:00:00]} d2 {[%emt 0:00:00]} 41. R6a2 {[%emt 0:03:46] [#]} d1=Q+ $1 {[%emt 0:03:52]} 42. Rxd1 {[%emt 0:00:03]} Rxa2 {[%emt 0:00:10]} 43. Rd7+ {[%emt 0:00:27]} Kb6 $19 {[%emt 0:00:23]} 0-1

[Event "FIDE WCCC G12 2018"]
[Site "Santiago de Compostela"]
[Date "2018.11.14"]
[Round "10"]
[White "Zvereva, Margarita"]
[Black "Tsirekidze, Barbare"]
[Result "1/2-1/2"]
[ECO "B42"]
[WhiteElo "1787"]
[BlackElo "1611"]
[Annotator "NA RC"]
[PlyCount "136"]
[EventDate "2018.11.04"]
[EventType "swiss"]
[EventCountry "ESP"]
[SourceTitle "playchess.com"]
[Source "ChessBase"]
[SourceQuality "1"]
[TimeControl "40/5400+30:1800+30"]

1. e4 {[%emt 0:00:00]} c5 {[%emt 0:00:00]} 2. Nf3 {[%emt 0:00:00]} e6 {[%emt 0:00:00]} 3. d4 {[%emt 0:00:04]} cxd4 {[%emt 0:00:00]} 4. Nxd4 {[%emt 0:00:04]} a6 {[%emt 0:00:00]} 5. Bd3 {[%emt 0:03:11]} d6 {[%emt 0:00:23]} 6. O-O {[%emt 0:06:33]} b5 {[%emt 0:01:49]} 7. c4 {[%emt 0:13:12]} bxc4 {[%emt 0:07:20]} 8. Bxc4 {[%emt 0:00:43]} Nf6 {[%emt 0:05:16]} 9. Bd3 {[%emt 0:06:26]} Be7 {[%emt 0:04:02]} 10. Qa4+ {[%emt 0:06:00]} Bd7 {[%emt 0:00:40]} 11. Qc2 {[%emt 0:02:21]} O-O {[%emt 0:00:48]} 12. Kh1 {[%emt 0:03:27]} e5 {[%emt 0:01:56]} 13. Nb3 {[%emt 0:02:40]} Nc6 {[%emt 0:03:02]} 14. Qe2 {[%emt 0:01:45]} a5 {[%emt 0:01:21]} 15. a4 {[%emt 0:02:37]} Nb4 {[%emt 0:08:30]} 16. Bc4 {[%emt 0:02:10]} Be6 {[%emt 0:09:12]} 17. Na3 {[%emt 0:06:39]} Bd7 {[%emt 0:19:19]} 18. Bb5 {[%emt 0:07:18]} Bxb5 {[%emt 0:03:58]} 19. Nxb5 {[%emt 0:01:53]} Qb8 {[%emt 0:08:30]} 20. Bd2 {[%emt 0:05:05]} d5 {[%emt 0:02:18]} 21. Bxb4 {[%emt 0:01:35]} Bxb4 {[%emt 0:00:24]} 22. exd5 {[%emt 0:00:25]} Nxd5 {[%emt 0:00:08]} 23. Qe4 {[%emt 0:04:15]} Nf6 {[%emt 0:06:56]} 24. Qf3 {[%emt 0:04:41]} e4 {[%emt 0:01:45]} 25. Qe2 {[%emt 0:00:38]} Re8 {[%emt 0:02:02]} 26. N3d4 {[%emt 0:00:48]} Qb6 {[%emt 0:03:38]} 27. Rac1 {[%emt 0:02:48]} Rac8 {[%emt 0:00:25]} 28. Rc4 {[%emt 0:06:46]} Rxc4 {[%emt 0:01:48]} 29. Qxc4 {[%emt 0:00:09]} h6 {[%emt 0:01:21]} 30. Nc6 {[%emt 0:07:04]} Ng4 {[%emt 0:05:41]} 31. Nbd4 {[%emt 0:03:21]} Bc5 {[%emt 0:00:56]} 32. b3 {[%emt 0:00:40]} Bxd4 {[%emt 0:01:27]} 33. Nxd4 {[%emt 0:00:08]} Ne5 {[%emt 0:00:32]} 34. Qb5 {[%emt 0:00:44]} Qxb5 {[%emt 0:00:18]} 35. Nxb5 {[%emt 0:00:27]} Nd3 {[%emt 0:00:21]} 36. g3 {[%emt 0:00:37]} Nc5 {[%emt 0:01:03]} 37. Rb1 {[%emt 0:00:30]} Rd8 {[%emt 0:00:11]} 38. Na7 {[%emt 0:00:38]} Rd3 {[%emt 0:00:42]} 39. b4 {[%emt 0:00:23]} axb4 {[%emt 0:00:26]} 40. Rxb4 {[%emt 0:00:00]} Ra3 {[%emt 0:00:00]} 41. Rc4 {[%emt 0:07:30]} Rxa4 {[%emt 0:01:49]} 42. Rxc5 {[%emt 0:00:20]} Rxa7 {[%emt 0:00:05]} 43. Rc4 {[%emt 0:00:59]} Re7 {[%emt 0:00:13]} 44. Kg2 {[%emt 0:00:20]} f5 {[%emt 0:00:32]} 45. h4 {[%emt 0:02:16]} Kf7 {[%emt 0:00:39]} 46. Kf1 {[%emt 0:00:26]} Kf6 {[%emt 0:00:33]} 47. Ke2 {[%emt 0:00:21]} g5 {[%emt 0:01:25]} 48. hxg5+ {[%emt 0:01:48]} hxg5 {[%emt 0:00:07]} 49. Ke3 {[%emt 0:00:37]} Rd7 {[%emt 0:04:59]} 50. g4 {[%emt 0:01:55]} fxg4 {[%emt 0:04:26]} 51. Kxe4 {[%emt 0:00:57]} Re7+ {[%emt 0:00:22]} 52. Kd3 {[%emt 0:00:40]} Kf5 {[%emt 0:00:15]} 53. Ra4 {[%emt 0:03:26]} Rb7 {[%emt 0:02:13]} 54. Ke3 {[%emt 0:00:57]} Rb3+ {[%emt 0:00:27]} 55. Ke2 {[%emt 0:00:15]} g3 {[%emt 0:01:37]} 56. fxg3 {[%emt 0:00:12]} Rxg3 {[%emt 0:00:04]} 57. Kf2 {[%emt 0:00:18]} Rb3 {[%emt 0:00:28]} 58. Kg2 {[%emt 0:00:38]} g4 {[%emt 0:00:23]} 59. Ra8 {[%emt 0:01:28]} Rb6 {[%emt 0:08:31]} 60. Rf8+ {[%emt 0:00:40]} Rf6 {[%emt 0:00:13]} 61. Rxf6+ {[%emt 0:00:27]} Kxf6 {[%emt 0:00:06]} 62. Kg3 {[%emt 0:00:04]} Kg5 {[%emt 0:00:08]} 63. Kg2 {[%emt 0:00:21]} Kf4 {[%emt 0:00:06]} 64. Kf2 {[%emt 0:00:24]} g3+ {[%emt 0:00:07]} 65. Kg2 {[%emt 0:00:02]} Kg4 {[%emt 0:00:07]} 66. Kg1 {[%emt 0:00:24]} Kf3 {[%emt 0:00:13]} 67. Kf1 {[%emt 0:00:09]} g2+ {[%emt 0:00:06]} 68. Kg1 {[%emt 0:00:02]} Kg3 {[%emt 0:00:01]} 1/2-1/2

[Event "FIDE WCCC G12 2018"]
[Site "Santiago de Compostela"]
[Date "2018.11.14"]
[Round "10"]
[White "Nurmanova, Alua"]
[Black "Ke, Rianne"]
[Result "1-0"]
[ECO "B77"]
[WhiteElo "1780"]
[BlackElo "1600"]
[Annotator "NA RC"]
[PlyCount "105"]
[EventDate "2018.11.04"]
[EventType "swiss"]
[EventCountry "ESP"]
[SourceTitle "playchess.com"]
[Source "ChessBase"]
[SourceQuality "1"]
[TimeControl "40/5400+30:1800+30"]

1. e4 {[%emt 0:00:00]} c5 {[%emt 0:00:00]} 2. Nf3 {[%emt 0:00:00]} d6 {[%emt 0:00:00]} 3. d4 {[%emt 0:00:00]} cxd4 {[%emt 0:00:03]} 4. Nxd4 {[%emt 0:00:00]} Nf6 {[%emt 0:00:04]} 5. Nc3 {[%emt 0:00:00]} g6 {[%emt 0:00:07]} 6. Be3 {[%emt 0:00:06]} Bg7 {[%emt 0:00:09]} 7. f3 {[%emt 0:00:05]} O-O {[%emt 0:00:12]} 8. Qd2 {[%emt 0:00:08]} Nc6 {[%emt 0:00:09]} 9. Bc4 {[%emt 0:00:16]} Bd7 {[%emt 0:00:09]} 10. Bb3 {[%emt 0:00:13]} Nxd4 {[%emt 0:00:21]} 11. Bxd4 {[%emt 0:00:12]} b5 {[%emt 0:00:04]} 12. h4 {[%emt 0:13:44]} a5 {[%emt 0:02:13]} 13. h5 {[%emt 0:05:47]} e5 {[%emt 0:12:51]} 14. Be3 {[%emt 0:04:52]} a4 {[%emt 0:02:09]} 15. Bd5 {[%emt 0:26:48]} b4 {[%emt 0:03:12]} 16. Ne2 {[%emt 0:14:44]} Nxd5 {[%emt 0:02:15]} 17. Qxd5 {[%emt 0:00:11]} Be6 {[%emt 0:02:20]} 18. Qd2 {[%emt 0:00:30]} Qc7 {[%emt 0:15:26]} 19. O-O {[%emt 0:10:29]} Rfd8 {[%emt 0:11:15]} 20. h6 {[%emt 0:04:55]} Bh8 {[%emt 0:00:46]} 21. g3 {[%emt 0:04:22]} d5 {[%emt 0:03:05]} 22. exd5 {[%emt 0:01:06]} Bxd5 {[%emt 0:05:14]} 23. Qxb4 {[%emt 0:00:40]} Qxc2 {[%emt 0:01:21]} 24. Nc3 {[%emt 0:03:34]} Rdb8 {[%emt 0:15:21]} 25. Qc5 {[%emt 0:04:00]} Be6 {[%emt 0:02:24]} 26. Rf2 {[%emt 0:01:36]} Qf5 {[%emt 0:02:01]} 27. Ne4 {[%emt 0:00:56]} Bd7 {[%emt 0:10:55]} 28. Rd1 {[%emt 0:01:21]} Qe6 {[%emt 0:01:51]} 29. Ng5 {[%emt 0:01:27]} Qe8 {[%emt 0:00:33]} 30. Rfd2 {[%emt 0:00:11]} Be6 {[%emt 0:02:12]} 31. Nxe6 {[%emt 0:00:52]} Qxe6 {[%emt 0:00:11]} 32. Qc7 {[%emt 0:00:14]} Bf6 {[%emt 0:02:21]} 33. Rd6 {[%emt 0:00:58]} Qe7 {[%emt 0:00:28]} 34. Rd7 {[%emt 0:00:33]} Qe8 {[%emt 0:01:00]} 35. R1d6 {[%emt 0:01:25]} Bd8 {[%emt 0:00:28]} 36. Qc3 {[%emt 0:00:35]} Rc8 {[%emt 0:02:39]} 37. Qd3 {[%emt 0:00:21]} Be7 {[%emt 0:00:56]} 38. Rd5 {[%emt 0:00:21]} f6 {[%emt 0:01:05]} 39. Kg2 {[%emt 0:00:47]} Kf8 {[%emt 0:00:47]} 40. f4 {[%emt 0:00:00]} Rd8 {[%emt 0:00:00]} 41. fxe5 {[%emt 0:08:30]} Rxd7 {[%emt 0:04:54]} 42. Rxd7 {[%emt 0:00:14]} fxe5 {[%emt 0:02:43]} 43. Bc5 {[%emt 0:04:49]} Bxc5 {[%emt 0:03:12]} 44. Qf3+ {[%emt 0:00:09]} Kg8 {[%emt 0:00:18]} 45. Rg7+ {[%emt 0:00:10]} Kh8 {[%emt 0:00:07]} 46. Qf6 {[%emt 0:00:09]} Qf8 {[%emt 0:08:38]} 47. Rf7+ {[%emt 0:01:11]} Kg8 {[%emt 0:00:06]} 48. Rxf8+ {[%emt 0:00:19]} Bxf8 {[%emt 0:00:05]} 49. Qe6+ {[%emt 0:00:05]} Kh8 {[%emt 0:00:03]} 50. Qxe5+ {[%emt 0:00:06]} Kg8 {[%emt 0:00:04]} 51. Qd5+ {[%emt 0:00:06]} Kh8 {[%emt 0:00:10]} 52. Qxa8 {[%emt 0:00:06]} Kg8 {[%emt 0:00:02]} 53. Qd5+ {[%emt 0:00:10]} 1-0

[Event "FIDE WCCC G12 2018"]
[Site "Santiago de Compostela"]
[Date "2018.11.14"]
[Round "10"]
[White "Butenandt, Svenja"]
[Black "Schiopu, Oana-Magdalena"]
[Result "1-0"]
[ECO "A52"]
[WhiteElo "1775"]
[BlackElo "1526"]
[Annotator "NA RC"]
[PlyCount "71"]
[EventDate "2018.11.04"]
[EventType "swiss"]
[EventCountry "ESP"]
[SourceTitle "playchess.com"]
[Source "ChessBase"]
[SourceQuality "1"]
[TimeControl "40/5400+30:1800+30"]

1. d4 {[%emt 0:00:00]} Nf6 {[%emt 0:00:00]} 2. c4 {[%emt 0:00:00]} e5 {[%emt 0:00:21]} 3. dxe5 {[%emt 0:00:07]} Ng4 {[%emt 0:00:21]} 4. e3 {[%emt 0:01:25]} Nxe5 {[%emt 0:03:15]} 5. Nh3 {[%emt 0:01:20]} Nbc6 {[%emt 0:02:19]} 6. Nf4 {[%emt 0:01:10]} Bc5 {[%emt 0:03:21]} 7. Be2 {[%emt 0:01:53]} O-O {[%emt 0:03:00]} 8. O-O {[%emt 0:00:58]} d6 {[%emt 0:06:05]} 9. a3 {[%emt 0:01:47]} a5 {[%emt 0:02:15]} 10. Nc3 {[%emt 0:01:17]} Ne7 {[%emt 0:03:22]} 11. b3 {[%emt 0:04:18]} Re8 {[%emt 0:03:12]} 12. Bb2 {[%emt 0:00:59]} N7g6 {[%emt 0:01:51]} 13. Nh5 {[%emt 0:08:23]} Qh4 {[%emt 0:02:30]} 14. Nd5 {[%emt 0:09:03]} Qd8 {[%emt 0:17:51]} 15. b4 {[%emt 0:10:03]} Ba7 {[%emt 0:02:19]} 16. Qd2 {[%emt 0:09:27]} c6 {[%emt 0:04:22]} 17. Ndf4 {[%emt 0:02:59]} Qh4 {[%emt 0:06:26]} 18. Qxd6 {[%emt 0:13:34]} Rd8 {[%emt 0:04:35]} 19. Nxg6 {[%emt 0:00:57]} Nxg6 {[%emt 0:00:23]} 20. Qg3 {[%emt 0:02:58]} Rd2 {[%emt 0:01:32]} 21. Qxh4 {[%emt 0:01:57]} Nxh4 {[%emt 0:00:10]} 22. Rfd1 {[%emt 0:01:04]} Rxd1+ {[%emt 0:02:21]} 23. Rxd1 {[%emt 0:00:26]} Bf5 {[%emt 0:00:23]} 24. Nxg7 {[%emt 0:01:44]} Be4 {[%emt 0:00:35]} 25. Bf1 {[%emt 0:03:29]} Nf5 {[%emt 0:04:43]} 26. Nh5 {[%emt 0:03:52]} Bc2 {[%emt 0:02:52]} 27. Rd7 {[%emt 0:01:57]} axb4 {[%emt 0:05:44]} 28. axb4 {[%emt 0:00:13]} Bb6 {[%emt 0:03:09]} 29. Rxb7 {[%emt 0:01:22]} Bd8 {[%emt 0:00:34]} 30. Rd7 {[%emt 0:00:57]} h6 {[%emt 0:03:49]} 31. g3 {[%emt 0:02:08]} Bg5 {[%emt 0:03:47]} 32. h4 {[%emt 0:02:08]} Be7 {[%emt 0:00:21]} 33. g4 {[%emt 0:03:37]} Bxh4 {[%emt 0:01:11]} 34. gxf5 {[%emt 0:02:12]} Bxf5 {[%emt 0:00:11]} 35. Rb7 {[%emt 0:03:57]} Kh7 {[%emt 0:01:49]} 36. Rxf7+ {[%emt 0:01:31]} 1-0